[Event "MPL 47th National Women Chess-ch 2022"]
[Site "Odisha"]
[Date "2022.02.25"]
[Round "2.6"]
[White "Pratyusha, Bodda"]
[Black "Chandreyee, Hajra"]
[Result "1-0"]
[ECO "D36"]
[WhiteElo "2328"]
[BlackElo "2001"]
[Annotator "NA"]
[PlyCount "133"]
[EventDate "2022.02.25"]
[EventCountry "IND"]
[SourceTitle "playchess.com"]
[Source "ChessBase"]
[SourceQuality "1"]
[TimeControl "5400+30"]

1. d4 {[%emt 0:00:16]} d5 {[%emt 0:03:44]} 2. c4 {[%emt 0:00:22]} e6 {[%emt 0:00:11]} 3. Nc3 {[%emt 0:00:05]} Nf6 {[%emt 0:00:10]} 4. cxd5 {[%emt 0:00:16]} exd5 {[%emt 0:00:22]} 5. Bg5 {[%emt 0:00:08]} Be7 {[%emt 0:00:15]} 6. e3 {[%emt 0:00:11]} c6 {[%emt 0:00:27]} 7. Bd3 {[%emt 0:00:05]} Nbd7 {[%emt 0:01:25]} 8. Nf3 {[%emt 0:00:46]} Nf8 {[%emt 0:03:31]} 9. O-O {[%emt 0:01:44]} Ne6 {[%emt 0:01:19]} 10. Bh4 {[%emt 0:00:04]} O-O {[%emt 0:00:34]} 11. Rb1 {[%emt 0:01:27]} g6 {[%emt 0:02:59]} 12. b4 {[%emt 0:01:09]} Ng7 {[%emt 0:03:54]} 13. b5 {[%emt 0:02:06]} Nf5 {[%emt 0:07:27]} 14. Bg3 {[%emt 0:00:51]} Bd6 {[%emt 0:03:40]} 15. Bxd6 {[%emt 0:04:44]} Nxd6 {[%emt 0:05:02]} 16. bxc6 {[%emt 0:01:41]} bxc6 {[%emt 0:00:12]} 17. Ne5 {[%emt 0:00:18]} Qc7 {[%emt 0:04:35]} 18. Qa4 {[%emt 0:04:08]} c5 {[%emt 0:06:05]} 19. dxc5 {[%emt 0:07:07]} Nde4 {[%emt 0:03:52]} 20. Qd4 {[%emt 0:08:16]} Nxc5 {[%emt 0:15:28]} 21. Nb5 {[%emt 0:05:43]} Qb6 {[%emt 0:01:41]} 22. Bc2 {[%emt 0:13:34]} Ne6 {[%emt 0:08:45]} 23. Qh4 {[%emt 0:02:35]} Kg7 {[%emt 0:02:42]} 24. Rfc1 {[%emt 0:04:04]} Ba6 {[%emt 0:06:02]} 25. Bd3 {[%emt 0:12:40]} Bxb5 {[%emt 0:00:50]} 26. Bxb5 {[%emt 0:00:48]} Qd6 {[%emt 0:00:41]} 27. Nf3 {[%emt 0:01:57]} Rac8 {[%emt 0:02:00]} 28. Rd1 {[%emt 0:00:50]} Qa3 {[%emt 0:01:48]} 29. Qg3 {[%emt 0:03:02]} a6 {[%emt 0:01:24]} 30. Bf1 {[%emt 0:01:13]} Rc2 {[%emt 0:00:50]} 31. Rb6 {[%emt 0:05:12]} a5 {[%emt 0:03:00]} 32. Qe5 {[%emt 0:01:10]} Qc5 {[%emt 0:05:51]} 33. Rb7 {[%emt 0:07:46]} Qc6 {[%emt 0:01:50]} 34. Rdb1 {[%emt 0:01:21]} Re8 {[%emt 0:02:09]} 35. Qa1 {[%emt 0:01:05]} Qc3 {[%emt 0:00:35]} 36. Qxc3 {[%emt 0:01:16]} Rxc3 {[%emt 0:00:05]} 37. Ra7 {[%emt 0:00:12]} Ra3 {[%emt 0:01:32]} 38. Rb2 {[%emt 0:00:27]} Rc8 {[%emt 0:00:37]} 39. Ne5 {[%emt 0:00:52]} Nd8 {[%emt 0:00:45]} 40. g4 {[%emt 0:00:51]} Ra4 {[%emt 0:00:59]} 41. g5 {[%emt 0:00:48]} Ne4 {[%emt 0:00:34]} 42. h4 {[%emt 0:00:41]} Nd6 {[%emt 0:00:22]} 43. Rd2 {[%emt 0:02:32]} Rxh4 {[%emt 0:00:59]} 44. Rxd5 {[%emt 0:00:10]} N8b7 {[%emt 0:00:36]} 45. Ba6 {[%emt 0:01:47]} Rb4 {[%emt 0:00:21]} 46. Bxb7 {[%emt 0:00:29]} Rxb7 {[%emt 0:00:22]} 47. Rdxa5 {[%emt 0:01:10]} Rxa7 {[%emt 0:00:41]} 48. Rxa7 {[%emt 0:00:05]} Rc5 {[%emt 0:00:16]} 49. f4 {[%emt 0:00:25]} Rc2 {[%emt 0:00:58]} 50. Rd7 {[%emt 0:00:31]} Rc1+ {[%emt 0:00:27]} 51. Kg2 {[%emt 0:00:11]} Nf5 {[%emt 0:00:32]} 52. Nxf7 {[%emt 0:01:50]} Nxe3+ {[%emt 0:00:26]} 53. Kf3 {[%emt 0:03:59]} Rc3 {[%emt 0:00:34]} 54. Ne5+ {[%emt 0:00:00]} Kg8 {[%emt 0:00:28]} 55. Rd3 {[%emt 0:00:00]} Rxd3 {[%emt 0:00:21]} 56. Nxd3 {[%emt 0:00:00]} Nc4 {[%emt 0:00:13]} 57. a4 {[%emt 0:00:00]} Kg7 {[%emt 0:00:23]} 58. Ke4 {[%emt 0:00:00]} h5 {[%emt 0:00:43]} 59. gxh6+ {[%emt 0:00:00]} Kxh6 {[%emt 0:00:05]} 60. Kd4 {[%emt 0:00:00]} Na5 {[%emt 0:00:42]} 61. Kc5 {[%emt 0:00:00]} Kg7 {[%emt 0:00:55]} 62. Kb5 {[%emt 0:00:00]} Nb3 {[%emt 0:00:16]} 63. Nc5 {[%emt 0:00:49]} Nd4+ {[%emt 0:00:16]} 64. Kb6 {[%emt 0:00:05]} Ne2 {[%emt 0:01:08]} 65. Nd3 {[%emt 0:01:29]} Nc3 {[%emt 0:00:28]} 66. a5 {[%emt 0:00:04]} Kf6 {[%emt 0:00:27]} 67. a6 {[%emt 0:00:16]} 1-0

[Event "MPL 47th National Women Chess-ch 2022"]
[Site "Odisha"]
[Date "2022.02.25"]
[Round "2.7"]
[White "Priyanka Nutakki"]
[Black "Deodhar, Vrushali Umesh"]
[Result "1-0"]
[ECO "D94"]
[WhiteElo "2301"]
[BlackElo "1974"]
[Annotator "NA"]
[PlyCount "101"]
[EventDate "2022.02.25"]
[EventCountry "IND"]
[SourceTitle "playchess.com"]
[Source "ChessBase"]
[SourceQuality "1"]
[TimeControl "5400+30"]

1. d4 {[%emt 0:05:33]} d5 {[%emt 0:00:09]} 2. c4 {[%emt 0:00:11]} c6 {[%emt 0:00:02]} 3. Nf3 {[%emt 0:01:02]} Nf6 {[%emt 0:00:02]} 4. e3 {[%emt 0:00:07]} g6 {[%emt 0:01:50]} 5. Nc3 {[%emt 0:00:10]} Bg7 {[%emt 0:00:07]} 6. Be2 {[%emt 0:00:25]} O-O {[%emt 0:00:11]} 7. O-O {[%emt 0:00:05]} Bg4 {[%emt 0:00:05]} 8. cxd5 {[%emt 0:01:37]} cxd5 {[%emt 0:00:03]} 9. Qb3 {[%emt 0:00:16]} b6 {[%emt 0:00:16]} 10. h3 {[%emt 0:00:10]} Bxf3 {[%emt 0:00:23]} 11. Bxf3 {[%emt 0:00:03]} e6 {[%emt 0:00:07]} 12. Bd2 {[%emt 0:00:20]} Nc6 {[%emt 0:00:43]} 13. Rfc1 {[%emt 0:11:52]} Na5 {[%emt 0:02:14]} 14. Qc2 {[%emt 0:03:20]} Qd7 {[%emt 0:02:25]} 15. Be2 {[%emt 0:07:10]} a6 {[%emt 0:01:13]} 16. Na4 {[%emt 0:00:54]} Rfc8 {[%emt 0:15:44]} 17. Qd1 {[%emt 0:00:15]} Qb7 {[%emt 0:04:44]} 18. Bxa5 {[%emt 0:09:24]} bxa5 {[%emt 0:00:03]} 19. Nc5 {[%emt 0:00:22]} Qb6 {[%emt 0:00:29]} 20. Qb3 {[%emt 0:05:58]} Rcb8 {[%emt 0:03:22]} 21. Qxb6 {[%emt 0:00:59]} Rxb6 {[%emt 0:00:02]} 22. b3 {[%emt 0:04:35]} Kf8 {[%emt 0:05:22]} 23. Na4 {[%emt 0:00:39]} Rd6 {[%emt 0:00:50]} 24. Rc7 {[%emt 0:02:15]} Nd7 {[%emt 0:02:39]} 25. f4 {[%emt 0:07:30]} Bf6 {[%emt 0:03:03]} 26. Rac1 {[%emt 0:01:37]} Bd8 {[%emt 0:04:28]} 27. R7c2 {[%emt 0:02:35]} Ke8 {[%emt 0:02:21]} 28. g4 {[%emt 0:07:19]} Ra7 {[%emt 0:02:35]} 29. g5 {[%emt 0:01:58]} Nb8 {[%emt 0:02:09]} 30. h4 {[%emt 0:06:02]} Nd7 {[%emt 0:04:19]} 31. Kg2 {[%emt 0:01:32]} Ke7 {[%emt 0:04:07]} 32. Bd3 {[%emt 0:05:40]} Nb6 {[%emt 0:02:45]} 33. Nb2 {[%emt 0:01:28]} Kd7 {[%emt 0:03:17]} 34. Be2 {[%emt 0:00:21]} Ke7 {[%emt 0:00:50]} 35. Kf3 {[%emt 0:01:34]} Nd7 {[%emt 0:01:57]} 36. Nd3 {[%emt 0:02:17]} Ra8 {[%emt 0:03:23]} 37. Kg3 {[%emt 0:04:35]} Ra7 {[%emt 0:00:58]} 38. Nf2 {[%emt 0:00:21]} Rb7 {[%emt 0:01:46]} 39. Nd3 {[%emt 0:02:00]} Ra7 {[%emt 0:00:32]} 40. h5 {[%emt 0:00:05]} Ra8 {[%emt 0:03:50]} 41. Nf2 {[%emt 0:00:29]} Rb8 {[%emt 0:00:56]} 42. hxg6 {[%emt 0:00:13]} hxg6 {[%emt 0:00:02]} 43. Ng4 {[%emt 0:00:15]} a4 {[%emt 0:02:52]} 44. bxa4 {[%emt 0:00:02]} Rb4 {[%emt 0:00:01]} 45. Rh1 {[%emt 0:00:07]} Nf8 {[%emt 0:04:51]} 46. Rh8 {[%emt 0:01:46]} Rxa4 {[%emt 0:01:16]} 47. Ne5 {[%emt 0:00:39]} Ke8 {[%emt 0:01:36]} 48. Kf3 {[%emt 0:02:37]} Rb4 {[%emt 0:04:55]} 49. Rc8 {[%emt 0:00:41]} Rb7 {[%emt 0:02:56]} 50. Nc6 {[%emt 0:01:52]} f6 {[%emt 0:02:54]} 51. Nxd8 {[%emt 0:00:58]} 1-0

[Event "MPL 47th National Women Chess-ch 2022"]
[Site "Odisha"]
[Date "2022.02.25"]
[Round "2.8"]
[White "Kotepalli, Sai Nirupama"]
[Black "Rakshitta Ravi"]
[Result "1-0"]
[ECO "C44"]
[WhiteElo "1914"]
[BlackElo "2278"]
[Annotator "NA"]
[PlyCount "121"]
[EventDate "2022.02.25"]
[EventCountry "IND"]
[SourceTitle "playchess.com"]
[Source "ChessBase"]
[SourceQuality "1"]
[TimeControl "5400+30"]

1. e4 e5 2. d3 Nc6 3. Nf3 Nf6 4. g3 d5 5. exd5 Nxd5 6. Bg2 Be7 7. O-O O-O 8. h3 Re8 9. Nbd2 f5 10. Nc4 Bf6 11. Re1 b5 12. Ne3 Be6 13. Nh2 Qd7 14. Nxd5 Bxd5 15. Bxd5+ Qxd5 16. Be3 Rad8 17. Qh5 g6 18. Qd1 f4 19. gxf4 exf4 20. Bxf4 Bxb2 21. Rb1 Be5 22. Ng4 Bg7 23. Bxc7 Nd4 24. Re4 Rc8 25. Be5 Rxe5 26. Nxe5 Bxe5 27. Qg4 Rf8 28. c4 Qf7 29. Kh1 h5 30. Qg2 Bg7 31. Rbe1 Nf3 32. R1e2 bxc4 33. Rxc4 Ne5 34. Rc3 Rb8 35. d4 Rb1+ 36. Kh2 Qf4+ 37. Qg3 Qxd4 38. Rc7 Rb5 39. f4 h4 40. Qe3 Rb2 41. Qxd4 Rxe2+ 42. Kh1 Rh2+ 43. Kxh2 Nf3+ 44. Kg2 Nxd4 45. Rxa7 Ne6 46. Kf3 Bd4 47. Re7 Nc5 48. a4 Kf8 49. Rc7 Ne6 50. Rh7 Nc5 51. a5 Bg7 52. Rxh4 Bc3 53. f5 Bxa5 54. fxg6 Kg7 55. Rg4 Ne6 56. Ke4 Bd8 57. Kf5 Nf8 58. Rb4 Be7 59. Rb6 Kh6 60. Rb7 Bd6 61. g7 {[%emt 0:30:26]} 1-0

[Event "MPL 47th National Women Chess-ch 2022"]
[Site "Odisha"]
[Date "2022.02.25"]
[Round "2.9"]
[White "Arpita, Mukherjee"]
[Black "Ghosh Samriddhaa"]
[Result "1-0"]
[ECO "D00"]
[WhiteElo "2260"]
[BlackElo "1910"]
[Annotator "NA"]
[PlyCount "77"]
[EventDate "2022.02.25"]
[EventCountry "IND"]
[SourceTitle "playchess.com"]
[Source "ChessBase"]
[SourceQuality "1"]
[TimeControl "5400+30"]

1. d4 {[%emt 0:06:38]} d5 {[%emt 0:01:14]} 2. Bf4 {[%emt 0:00:08]} Nf6 {[%emt 0:01:04]} 3. e3 {[%emt 0:00:08]} c5 {[%emt 0:00:58]} 4. c3 {[%emt 0:00:09]} Nc6 {[%emt 0:01:06]} 5. Nd2 {[%emt 0:00:06]} Bf5 {[%emt 0:01:38]} 6. Ngf3 {[%emt 0:05:32]} c4 {[%emt 0:08:46]} 7. Nh4 {[%emt 0:00:59]} Bd7 {[%emt 0:20:39]} 8. Be2 {[%emt 0:04:48]} h6 {[%emt 0:02:40]} 9. Bg3 {[%emt 0:00:50]} g5 {[%emt 0:05:30]} 10. Nhf3 {[%emt 1:16:12]} Bf5 {[%emt 0:00:30]} 11. Ne5 {[%emt 0:00:00]} Nxe5 {[%emt 0:03:26]} 12. Bxe5 {[%emt 0:00:00]} Bg7 {[%emt 0:05:28]} 13. e4 {[%emt 0:00:00]} Be6 {[%emt 0:12:03]} 14. exd5 {[%emt 0:00:00]} Bxd5 {[%emt 0:01:22]} 15. Bxc4 {[%emt 0:00:00]} Bxg2 {[%emt 0:03:02]} 16. Rg1 {[%emt 0:00:00]} Bd5 {[%emt 0:01:56]} 17. Qb3 {[%emt 0:00:00]} Bxc4 {[%emt 0:03:39]} 18. Qxc4 {[%emt 0:00:00]} Nh5 {[%emt 0:04:22]} 19. O-O-O {[%emt 0:00:00]} Bxe5 {[%emt 0:04:11]} 20. dxe5 {[%emt 0:00:00]} Nf4 {[%emt 0:00:35]} 21. Nb3 {[%emt 0:00:00]} Qc8 {[%emt 0:01:38]} 22. Nc5 {[%emt 0:00:00]} Qc6 {[%emt 0:01:03]} 23. Rd4 {[%emt 0:00:00]} Rc8 {[%emt 0:10:49]} 24. Rxf4 {[%emt 0:00:00]} gxf4 {[%emt 0:00:08]} 25. e6 {[%emt 0:00:00]} fxe6 {[%emt 0:03:35]} 26. Qd4 {[%emt 0:00:00]} Rf8 {[%emt 0:00:19]} 27. Nb3 {[%emt 0:00:00]} Qd5 {[%emt 0:01:13]} 28. Qg7 {[%emt 0:00:00]} e5 {[%emt 0:00:54]} 29. Qxh6 {[%emt 0:00:00]} Qf7 {[%emt 0:00:35]} 30. Rg7 {[%emt 0:00:00]} Qf6 {[%emt 0:00:09]} 31. Rg6 {[%emt 0:00:00]} Qf5 {[%emt 0:00:26]} 32. Rg5 {[%emt 0:00:00]} Qf6 {[%emt 0:00:58]} 33. Qh5+ {[%emt 0:00:00]} Kd7 {[%emt 0:00:31]} 34. Rxe5 {[%emt 0:00:00]} Kc7 {[%emt 0:00:24]} 35. Nc5 {[%emt 0:00:00]} Kb8 {[%emt 0:00:23]} 36. Nd7+ {[%emt 0:00:00]} Ka8 {[%emt 0:00:45]} 37. Nxf6 {[%emt 0:00:00]} exf6 {[%emt 0:00:06]} 38. Re7 {[%emt 0:00:00]} Rh8 {[%emt 0:00:23]} 39. Qf3 {[%emt 0:00:00]} 1-0

[Event "MPL 47th National Women Chess-ch 2022"]
[Site "Odisha"]
[Date "2022.02.25"]
[Round "2.10"]
[White "Velpula Sarayu"]
[Black "Savitha Shri B"]
[Result "1-0"]
[ECO "B23"]
[WhiteElo "1875"]
[BlackElo "2257"]
[Annotator "NA"]
[PlyCount "71"]
[EventDate "2022.02.25"]
[EventCountry "IND"]
[SourceTitle "playchess.com"]
[Source "ChessBase"]
[SourceQuality "1"]
[TimeControl "5400+30"]

1. e4 {[%emt 0:00:08]} c5 {[%emt 0:03:44]} 2. Nc3 {[%emt 0:00:07]} a6 {[%emt 0:00:04]} 3. g3 {[%emt 0:00:18]} b5 {[%emt 0:00:04]} 4. Bg2 {[%emt 0:00:21]} Bb7 {[%emt 0:00:07]} 5. Nge2 {[%emt 0:01:06]} e6 {[%emt 0:00:06]} 6. O-O {[%emt 0:00:50]} d5 {[%emt 0:02:17]} 7. exd5 {[%emt 0:04:35]} b4 {[%emt 0:05:50]} 8. Na4 {[%emt 0:02:34]} exd5 {[%emt 0:14:04]} 9. Re1 {[%emt 0:05:25]} Be7 {[%emt 0:03:03]} 10. Nf4 {[%emt 0:01:53]} Kf8 {[%emt 0:03:05]} 11. c4 {[%emt 0:01:47]} Nf6 {[%emt 0:02:53]} 12. Nxd5 {[%emt 0:03:10]} Nxd5 {[%emt 0:00:47]} 13. cxd5 {[%emt 0:00:06]} Ra7 {[%emt 0:00:54]} 14. d4 {[%emt 0:05:40]} c4 {[%emt 0:11:22]} 15. Bf4 {[%emt 0:00:54]} Nd7 {[%emt 0:10:51]} 16. d6 {[%emt 0:01:52]} Bf6 {[%emt 0:01:20]} 17. Bxb7 {[%emt 0:00:19]} Rxb7 {[%emt 0:00:08]} 18. Qe2 {[%emt 0:00:47]} Rb5 {[%emt 0:09:14]} 19. Qxc4 {[%emt 0:03:02]} g5 {[%emt 0:00:25]} 20. Bd2 {[%emt 0:10:36]} Qa5 {[%emt 0:07:27]} 21. a3 {[%emt 0:12:29]} Kg7 {[%emt 0:03:33]} 22. axb4 {[%emt 0:00:26]} Qd8 {[%emt 0:00:09]} 23. Nc5 {[%emt 0:00:28]} Nb6 {[%emt 0:00:24]} 24. Qd3 {[%emt 0:01:06]} Qxd6 {[%emt 0:00:42]} 25. Rxa6 {[%emt 0:01:28]} Qxd4 {[%emt 0:06:24]} 26. Qxb5 {[%emt 0:00:10]} Qxd2 {[%emt 0:00:08]} 27. Rf1 {[%emt 0:00:07]} Bd8 {[%emt 0:05:38]} 28. Rxb6 {[%emt 0:00:31]} Bxb6 {[%emt 0:00:08]} 29. Qxb6 {[%emt 0:00:04]} Re8 {[%emt 0:00:09]} 30. Nb3 {[%emt 0:00:31]} Qc2 {[%emt 0:01:34]} 31. Qd4+ {[%emt 0:00:06]} Kg8 {[%emt 0:00:03]} 32. Qc3 {[%emt 0:00:06]} Qf5 {[%emt 0:00:21]} 33. Nd4 {[%emt 0:00:06]} Qh3 {[%emt 0:00:10]} 34. Qc5 {[%emt 0:00:33]} h6 {[%emt 0:00:59]} 35. Qf5 {[%emt 0:00:08]} Qh5 {[%emt 0:00:04]} 36. b5 {[%emt 0:44:41]} 1-0

[Event "MPL 47th National Women Chess-ch 2022"]
[Site "Odisha"]
[Date "2022.02.25"]
[Round "2.11"]
[White "Sharma Isha"]
[Black "Jayashree, P.K."]
[Result "1-0"]
[ECO "B75"]
[WhiteElo "2253"]
[BlackElo "1864"]
[Annotator "NA"]
[PlyCount "113"]
[EventDate "2022.02.25"]
[EventCountry "IND"]
[SourceTitle "playchess.com"]
[Source "ChessBase"]
[SourceQuality "1"]
[TimeControl "5400+30"]

1. e4 {[%emt 0:00:07]} c5 {[%emt 0:00:14]} 2. Nf3 {[%emt 0:00:11]} d6 {[%emt 0:00:13]} 3. d4 {[%emt 0:00:29]} cxd4 {[%emt 0:00:25]} 4. Nxd4 {[%emt 0:00:14]} Nf6 {[%emt 0:00:10]} 5. Nc3 {[%emt 0:00:06]} g6 {[%emt 0:00:20]} 6. Be3 {[%emt 0:00:53]} Bg7 {[%emt 0:00:08]} 7. f3 {[%emt 0:00:17]} Nbd7 {[%emt 0:02:56]} 8. Qd2 {[%emt 0:01:16]} h5 {[%emt 0:00:15]} 9. O-O-O {[%emt 0:01:23]} a6 {[%emt 0:00:23]} 10. Bc4 {[%emt 0:03:38]} b5 {[%emt 0:03:22]} 11. Bb3 {[%emt 0:00:25]} Bb7 {[%emt 0:00:29]} 12. Kb1 {[%emt 0:02:11]} O-O {[%emt 0:04:14]} 13. Bh6 {[%emt 0:02:41]} Nc5 {[%emt 0:00:43]} 14. Qg5 {[%emt 0:11:43]} Nxb3 {[%emt 0:13:12]} 15. Bxg7 {[%emt 0:01:18]} Kxg7 {[%emt 0:04:00]} 16. axb3 {[%emt 0:00:40]} e6 {[%emt 0:10:07]} 17. Nce2 {[%emt 0:11:47]} Rc8 {[%emt 0:09:41]} 18. Nf4 {[%emt 0:04:59]} Qe8 {[%emt 0:05:42]} 19. Ndxe6+ {[%emt 0:12:50]} fxe6 {[%emt 0:03:25]} 20. Rxd6 {[%emt 0:00:38]} Rc6 {[%emt 0:14:21]} 21. Nxe6+ {[%emt 0:05:44]} Qxe6 {[%emt 0:00:47]} 22. Rxe6 {[%emt 0:00:05]} Rxe6 {[%emt 0:00:06]} 23. Rd1 {[%emt 0:00:04]} Rfe8 {[%emt 0:02:06]} 24. Qc5 {[%emt 0:00:19]} Kh6 {[%emt 0:00:50]} 25. Rd6 {[%emt 0:03:23]} Bc8 {[%emt 0:08:21]} 26. Rxe6 {[%emt 0:04:16]} Bxe6 {[%emt 0:00:32]} 27. Qe3+ {[%emt 0:00:28]} Kg7 {[%emt 0:01:38]} 28. Qa7+ {[%emt 0:00:11]} Bd7 {[%emt 0:00:25]} 29. Qxa6 {[%emt 0:00:46]} Kf7 {[%emt 0:01:23]} 30. Qd6 {[%emt 0:00:30]} Re6 {[%emt 0:00:19]} 31. Qf4 {[%emt 0:00:05]} Ke7 {[%emt 0:01:08]} 32. c4 {[%emt 0:00:48]} bxc4 {[%emt 0:00:55]} 33. bxc4 {[%emt 0:00:05]} Rc6 {[%emt 0:01:07]} 34. b3 {[%emt 0:00:43]} Be6 {[%emt 0:01:11]} 35. h3 {[%emt 0:01:06]} Nd7 {[%emt 0:01:37]} 36. g4 {[%emt 0:00:32]} hxg4 {[%emt 0:00:08]} 37. hxg4 {[%emt 0:00:39]} Nc5 {[%emt 0:02:03]} 38. Kc2 {[%emt 0:00:57]} Kd7 {[%emt 0:01:02]} 39. Qf6 {[%emt 0:01:20]} Rb6 {[%emt 0:01:42]} 40. Qd4+ {[%emt 0:02:14]} Kc6 {[%emt 0:00:28]} 41. e5 {[%emt 0:00:08]} Nxb3 {[%emt 0:00:40]} 42. Qd6+ {[%emt 0:02:31]} Kb7 {[%emt 0:00:06]} 43. Qe7+ {[%emt 0:00:03]} Ka6 {[%emt 0:00:18]} 44. Kc3 {[%emt 0:02:14]} Na5 {[%emt 0:01:08]} 45. c5 {[%emt 0:00:15]} Rc6 {[%emt 0:01:11]} 46. Kb4 {[%emt 0:01:15]} Bc8 {[%emt 0:01:51]} 47. Qe8 {[%emt 0:00:57]} Bb7 {[%emt 0:00:24]} 48. Qd8 {[%emt 0:01:05]} Nb3 {[%emt 0:01:13]} 49. Qd3+ {[%emt 0:00:23]} Ka7 {[%emt 0:00:07]} 50. Qxb3 {[%emt 0:00:05]} Rc7 {[%emt 0:00:26]} 51. Qe6 {[%emt 0:00:47]} Kb8 {[%emt 0:00:51]} 52. Qe8+ {[%emt 0:04:20]} Rc8 {[%emt 0:00:14]} 53. Qf7 {[%emt 0:00:14]} Rc7 {[%emt 0:00:43]} 54. e6 {[%emt 0:00:11]} Bc6 {[%emt 0:00:38]} 55. e7 {[%emt 0:00:07]} Rc8 {[%emt 0:00:16]} 56. Qxg6 {[%emt 0:00:07]} Re8 {[%emt 0:00:07]} 57. Qxc6 {[%emt 0:00:07]} 1-0

[Event "MPL 47th National Women Chess-ch 2022"]
[Site "Odisha"]
[Date "2022.02.25"]
[Round "2.12"]
[White "Bristy Mukherjee"]
[Black "Priyanka, Kumari"]
[Result "1-0"]
[ECO "D03"]
[WhiteElo "1856"]
[BlackElo "1910"]
[Annotator "NA"]
[PlyCount "73"]
[EventDate "2022.02.25"]
[EventCountry "IND"]
[SourceTitle "playchess.com"]
[Source "ChessBase"]
[SourceQuality "1"]
[TimeControl "5400+30"]

1. d4 {[%emt 0:00:04]} Nf6 {[%emt 0:00:12]} 2. Bg5 {[%emt 0:00:13]} d5 {[%emt 0:01:04]} 3. e3 {[%emt 0:00:41]} Nbd7 {[%emt 0:02:00]} 4. Nf3 {[%emt 0:04:37]} h6 {[%emt 0:04:33]} 5. Bh4 {[%emt 0:00:55]} e6 {[%emt 0:02:08]} 6. Nbd2 {[%emt 0:02:59]} Be7 {[%emt 0:01:57]} 7. Bd3 {[%emt 0:00:55]} c5 {[%emt 0:01:31]} 8. c3 {[%emt 0:00:36]} b6 {[%emt 0:06:14]} 9. Qa4 {[%emt 0:12:25]} O-O {[%emt 0:07:23]} 10. Rd1 {[%emt 0:10:48]} Bb7 {[%emt 0:06:48]} 11. Bb1 {[%emt 0:10:08]} Re8 {[%emt 0:20:49]} 12. Ne5 {[%emt 0:08:01]} Nxe5 {[%emt 0:04:18]} 13. dxe5 {[%emt 0:00:09]} Nd7 {[%emt 0:00:14]} 14. Bg3 {[%emt 0:00:39]} Qc7 {[%emt 0:11:16]} 15. Nf3 {[%emt 0:04:45]} g6 {[%emt 0:05:35]} 16. h4 {[%emt 0:02:49]} h5 {[%emt 0:02:07]} 17. Qf4 {[%emt 0:06:02]} Nf8 {[%emt 0:10:44]} 18. Qh6 {[%emt 0:06:59]} Nh7 {[%emt 0:04:12]} 19. Rh3 {[%emt 0:15:31]} Bf8 {[%emt 0:03:21]} 20. Qf4 {[%emt 0:00:37]} Bg7 {[%emt 0:02:53]} 21. Bh2 {[%emt 0:00:50]} Nf8 {[%emt 0:00:51]} 22. g4 {[%emt 0:01:24]} f5 {[%emt 0:00:24]} 23. gxh5 {[%emt 0:04:51]} gxh5 {[%emt 0:00:07]} 24. Ng5 {[%emt 0:01:06]} Ng6 {[%emt 0:00:39]} 25. Qf3 {[%emt 0:00:26]} Re7 {[%emt 0:01:04]} 26. Qxh5 {[%emt 0:01:20]} Nf8 {[%emt 0:00:31]} 27. Nf3 {[%emt 0:02:23]} Bc6 {[%emt 0:00:19]} 28. Bf4 {[%emt 0:00:57]} Be8 {[%emt 0:00:40]} 29. Qg5 {[%emt 0:00:07]} Kh8 {[%emt 0:00:29]} 30. h5 {[%emt 0:00:34]} Nh7 {[%emt 0:00:20]} 31. Qg2 {[%emt 0:00:43]} Bf8 {[%emt 0:00:43]} 32. h6 {[%emt 0:00:28]} Bf7 {[%emt 0:00:18]} 33. Rg3 {[%emt 0:01:16]} Rd7 {[%emt 0:00:41]} 34. Nh4 {[%emt 0:00:13]} Be7 {[%emt 0:00:32]} 35. Rg7 {[%emt 0:00:30]} Bf8 {[%emt 0:00:28]} 36. Rg8+ {[%emt 0:00:27]} Bxg8 {[%emt 0:00:12]} 37. Ng6# {[%emt 0:00:04]} 1-0